[Event "Titled Tuesday Blitz April 19 Late 2022"]
[White "Reprintsev, Alexander"]
[Black "Pinheiro, Iung Alicio de O."]
[WhiteFideId "14100541"]
[BlackFideId "2104350"]
[WhiteElo "2108"]
[BlackElo "2600"]
[Result "1-0"]
[Round "09"]
[TimeControl "180+1"]
[Date "2022.04.19"]
[WhiteClock "0:00:13"]
[BlackClock "0:00:07"]

1. e4 {[%clk 0:02:50]}  c5 {[%clk 0:02:59]} 2. b3 {[%clk 0:02:50]}  Nf6 {[%clk 0:02:46]} 3. e5 {[%clk 0:02:49]}  Nd5 {[%clk 0:02:45]} 4. Nc3 {[%clk 0:02:45]}  Nxc3 {[%clk 0:02:30]} 5. dxc3 {[%clk 0:02:45]}  d5 {[%clk 0:02:30]} 6. exd6 {[%clk 0:02:42]}  e6 {[%clk 0:02:26]} 7. Bf4 {[%clk 0:02:38]}  Qf6 {[%clk 0:02:04]} 8. Qd2 {[%clk 0:02:34]}  e5 {[%clk 0:02:04]} 9. Qe3 {[%clk 0:02:19]}  Bxd6 {[%clk 0:02:00]} 10. Bg5 {[%clk 0:02:18]}  Qg6 {[%clk 0:01:51]} 11. O-O-O {[%clk 0:02:15]}  O-O {[%clk 0:01:12]} 12. h4 {[%clk 0:02:13]}  h6 {[%clk 0:01:10]} 13. Bd3 {[%clk 0:02:12]}  f5 {[%clk 0:01:06]} 14. Bc4+ {[%clk 0:01:57]}  Kh8 {[%clk 0:01:05]} 15. Qd2 {[%clk 0:01:45]}  Bc7 {[%clk 0:00:59]} 16. Be7 {[%clk 0:01:42]}  Re8 {[%clk 0:00:59]} 17. Bxc5 {[%clk 0:01:41]}  Nc6 {[%clk 0:00:57]} 18. Nf3 {[%clk 0:01:31]}  e4 {[%clk 0:00:51]} 19. Ng5 {[%clk 0:01:28]}  Ne5 {[%clk 0:00:48]} 20. Bd5 {[%clk 0:01:07]}  Bb6 {[%clk 0:00:30]} 21. Bd4 {[%clk 0:00:56]}  Bxd4 {[%clk 0:00:11]} 22. cxd4 {[%clk 0:00:55]}  Ng4 {[%clk 0:00:10]} 23. Bf7 {[%clk 0:00:53]}  Qc6 {[%clk 0:00:10]} 24. Bxe8 {[%clk 0:00:51]}  Qxe8 {[%clk 0:00:11]} 25. Nh3 {[%clk 0:00:28]}  Be6 {[%clk 0:00:11]} 26. Nf4 {[%clk 0:00:27]}  Bf7 {[%clk 0:00:11]} 27. h5 {[%clk 0:00:27]}  Rc8 {[%clk 0:00:12]} 28. Kb1 {[%clk 0:00:26]}  b5 {[%clk 0:00:12]} 29. f3 {[%clk 0:00:25]}  e3 {[%clk 0:00:12]} 30. Qd3 {[%clk 0:00:22]}  Nf2 {[%clk 0:00:12]} 31. Qxf5 {[%clk 0:00:22]}  Nxh1 {[%clk 0:00:12]} 32. Rxh1 {[%clk 0:00:21]}  Qc6 {[%clk 0:00:08]} 33. Rc1 {[%clk 0:00:19]}  Rc7 {[%clk 0:00:05]} 34. Qd3 {[%clk 0:00:18]}  Re7 {[%clk 0:00:04]} 35. Ne2 {[%clk 0:00:17]}  Qd6 {[%clk 0:00:04]} 36. g4 {[%clk 0:00:17]}  b4 {[%clk 0:00:04]} 37. c4 {[%clk 0:00:16]}  bxc3 {[%clk 0:00:04]} 38. Rxc3 {[%clk 0:00:16]}  Re8 {[%clk 0:00:05]} 39. Kb2 {[%clk 0:00:16]}  Qe7 {[%clk 0:00:05]} 40. Qf5 {[%clk 0:00:14]}  Be6 {[%clk 0:00:04]} 41. Qe5 {[%clk 0:00:14]}  Bf7 {[%clk 0:00:03]} 42. Qxe7 {[%clk 0:00:14]}  Rxe7 {[%clk 0:00:04]} 43. Rc8+ {[%clk 0:00:14]}  Kh7 {[%clk 0:00:05]} 44. Kc3 {[%clk 0:00:14]}  g6 {[%clk 0:00:06]} 45. hxg6+ {[%clk 0:00:14]}  Bxg6 {[%clk 0:00:07]} 46. Rc5 {[%clk 0:00:14]}  a6 {[%clk 0:00:07]} 47. b4 {[%clk 0:00:13]}  Rf7 {[%clk 0:00:08]} 48. Re5 {[%clk 0:00:13]}  Rxf3 {[%clk 0:00:08]} 49. d5 {[%clk 0:00:13]}  Kg7 {[%clk 0:00:08]} 50. Kd4 {[%clk 0:00:13]}  Rf2 {[%clk 0:00:08]} 51. Rxe3 {[%clk 0:00:13]}  Kf6 {[%clk 0:00:08]} 52. Re6+ {[%clk 0:00:12]}  Kf7 {[%clk 0:00:08]} 53. Re4 {[%clk 0:00:11]}  Rf1 {[%clk 0:00:08]} 54. Rf4+ {[%clk 0:00:10]}  Rxf4+ {[%clk 0:00:08]} 55. Nxf4 {[%clk 0:00:10]}  Bb1 {[%clk 0:00:09]} 56. a3 {[%clk 0:00:10]}  Ba2 {[%clk 0:00:09]} 57. Kc5 {[%clk 0:00:10]}  Kf6 {[%clk 0:00:08]} 58. Nd3 {[%clk 0:00:10]}  Ke7 {[%clk 0:00:07]} 59. Ne5 {[%clk 0:00:09]}  Bb1 {[%clk 0:00:07]} 60. d6+ {[%clk 0:00:09]}  Kd8 {[%clk 0:00:07]} 61. Nf7+ {[%clk 0:00:09]}  Kd7 {[%clk 0:00:07]} 62. Nxh6 {[%clk 0:00:10]}  Be4 {[%clk 0:00:07]} 63. Nf5 {[%clk 0:00:09]}  Bf3 {[%clk 0:00:07]} 64. Ne3 {[%clk 0:00:09]}  Be4 {[%clk 0:00:07]} 65. g5 {[%clk 0:00:10]}  Bg6 {[%clk 0:00:07]} 66. Nc4 {[%clk 0:00:10]}  Ke6 {[%clk 0:00:06]} 67. Nb6 {[%clk 0:00:10]}  Be4 {[%clk 0:00:04]} 68. a4 {[%clk 0:00:10]}  Bf3 {[%clk 0:00:04]} 69. g6 {[%clk 0:00:06]}  Be4 {[%clk 0:00:04]} 70. g7 {[%clk 0:00:06]}  Bh7 {[%clk 0:00:04]} 71. Kc6 {[%clk 0:00:06]}  Be4+ {[%clk 0:00:03]} 72. Kc7 {[%clk 0:00:06]}  Bh7 {[%clk 0:00:03]} 73. d7 {[%clk 0:00:06]}  Kf7 {[%clk 0:00:03]} 74. d8=Q {[%clk 0:00:06]}  Kxg7 {[%clk 0:00:03]} 75. Nd5 {[%clk 0:00:06]}  Bg6 {[%clk 0:00:02]} 76. Qe7+ {[%clk 0:00:07]}  Kh6 {[%clk 0:00:02]} 77. Qd6 {[%clk 0:00:08]}  a5 {[%clk 0:00:02]} 78. Qxg6+ {[%clk 0:00:08]}  Kxg6 {[%clk 0:00:02]} 79. bxa5 {[%clk 0:00:09]}  Kf5 {[%clk 0:00:03]} 80. Nb6 {[%clk 0:00:10]}  Ke5 {[%clk 0:00:04]} 81. a6 {[%clk 0:00:11]}  Kd4 {[%clk 0:00:05]} 82. a7 {[%clk 0:00:11]}  Kc5 {[%clk 0:00:06]} 83. a8=Q {[%clk 0:00:12]}  Kb4 {[%clk 0:00:06]} 84. Qc6 {[%clk 0:00:12]}  Ka5 {[%clk 0:00:07]} 85. Qb5# {[%clk 0:00:13]} 1-0


[Site "https://www.chess.com"]

[Event "Titled Tuesday Blitz April 19 Late 2022"]
[White "Sanchez Alvares, Kelvin Antonio"]
[Black "Zhou, Qiyu"]
[WhiteFideId "3906680"]
[BlackFideId "505161"]
[WhiteElo "2193"]
[BlackElo "1925"]
[Result "0-1"]
[Round "09"]
[TimeControl "180+1"]
[Date "2022.04.19"]
[WhiteClock "0:00:47"]
[BlackClock "0:00:26"]

1. e4 {[%clk 0:03:00]}  c5 {[%clk 0:02:56]} 2. Nf3 {[%clk 0:03:00]}  d6 {[%clk 0:02:57]} 3. d4 {[%clk 0:03:00]}  cxd4 {[%clk 0:02:58]} 4. Nxd4 {[%clk 0:03:01]}  Nf6 {[%clk 0:02:58]} 5. f3 {[%clk 0:03:01]}  Nc6 {[%clk 0:02:57]} 6. c4 {[%clk 0:03:00]}  e6 {[%clk 0:02:51]} 7. Nc3 {[%clk 0:02:59]}  Be7 {[%clk 0:02:51]} 8. Be3 {[%clk 0:02:58]}  O-O {[%clk 0:02:51]} 9. Qd2 {[%clk 0:02:57]}  a6 {[%clk 0:02:51]} 10. Be2 {[%clk 0:02:57]}  Qc7 {[%clk 0:02:52]} 11. Rc1 {[%clk 0:02:56]}  Bd7 {[%clk 0:02:51]} 12. Nd5 {[%clk 0:02:56]}  exd5 {[%clk 0:02:51]} 13. cxd5 {[%clk 0:02:56]}  Rfc8 {[%clk 0:02:45]} 14. O-O {[%clk 0:02:54]}  Qd8 {[%clk 0:02:37]} 15. dxc6 {[%clk 0:02:52]}  bxc6 {[%clk 0:02:38]} 16. Rfd1 {[%clk 0:02:48]}  d5 {[%clk 0:02:27]} 17. e5 {[%clk 0:02:45]}  Ne8 {[%clk 0:02:26]} 18. Nb3 {[%clk 0:02:41]}  Nc7 {[%clk 0:02:14]} 19. f4 {[%clk 0:02:39]}  a5 {[%clk 0:01:52]} 20. Nxa5 {[%clk 0:02:28]}  Ne6 {[%clk 0:01:45]} 21. Nb3 {[%clk 0:02:14]}  Rxa2 {[%clk 0:01:43]} 22. f5 {[%clk 0:02:14]}  Nf8 {[%clk 0:01:41]} 23. Rf1 {[%clk 0:02:09]}  Rb8 {[%clk 0:01:38]} 24. f6 {[%clk 0:01:56]}  Rxb3 {[%clk 0:01:21]} 25. fxe7 {[%clk 0:01:53]}  Qxe7 {[%clk 0:01:21]} 26. Bd4 {[%clk 0:01:47]}  Ne6 {[%clk 0:01:14]} 27. Bh5 {[%clk 0:01:38]}  g6 {[%clk 0:01:09]} 28. Bf3 {[%clk 0:01:06]}  Nxd4 {[%clk 0:01:08]} 29. Qxd4 {[%clk 0:01:07]}  Rbxb2 {[%clk 0:01:06]} 30. e6 {[%clk 0:01:06]}  Qxe6 {[%clk 0:00:54]} 31. Rce1 {[%clk 0:01:02]}  Qd6 {[%clk 0:00:49]} 32. Qh4 {[%clk 0:00:57]}  Kg7 {[%clk 0:00:44]} 33. Qd8 {[%clk 0:00:51]}  Rxg2+ {[%clk 0:00:26]} 34. Bxg2 {[%clk 0:00:49]}  Rxg2+ {[%clk 0:00:27]} 35. Kxg2 {[%clk 0:00:50]}  Bh3+ {[%clk 0:00:27]} 36. Kxh3 {[%clk 0:00:51]}  Qxd8 {[%clk 0:00:28]} 37. Ra1 {[%clk 0:00:48]}  Qd7+ {[%clk 0:00:27]} 38. Kg3 {[%clk 0:00:49]}  c5 {[%clk 0:00:26]} 39. Ra5 {[%clk 0:00:47]}  Qc7+ {[%clk 0:00:26]} 0-1


[Site "https://www.chess.com"]

[Event "Titled Tuesday Blitz April 19 Late 2022"]
[White "Saraci, Nderim"]
[Black "Skliarov, Viktor"]
[WhiteFideId "6351921"]
[BlackFideId "14106736"]
[WhiteElo "2553"]
[BlackElo "2229"]
[Result "1-0"]
[Round "09"]
[TimeControl "180+1"]
[Date "2022.04.19"]
[WhiteClock "0:01:07"]
[BlackClock "0:00:18"]

1. b3 {[%clk 0:02:53]}  e5 {[%clk 0:02:54]} 2. Bb2 {[%clk 0:02:54]}  Nc6 {[%clk 0:02:55]} 3. e3 {[%clk 0:02:54]}  Nf6 {[%clk 0:02:54]} 4. Nf3 {[%clk 0:02:54]}  Bd6 {[%clk 0:02:54]} 5. c4 {[%clk 0:02:54]}  Qe7 {[%clk 0:02:46]} 6. Nc3 {[%clk 0:02:54]}  e4 {[%clk 0:02:43]} 7. Nd4 {[%clk 0:02:53]}  Nxd4 {[%clk 0:02:41]} 8. exd4 {[%clk 0:02:54]}  c6 {[%clk 0:02:40]} 9. Be2 {[%clk 0:02:53]}  O-O {[%clk 0:02:25]} 10. O-O {[%clk 0:02:51]}  a6 {[%clk 0:02:09]} 11. d3 {[%clk 0:02:49]}  e3 {[%clk 0:02:05]} 12. Bf3 {[%clk 0:02:28]}  Bf4 {[%clk 0:01:45]} 13. g3 {[%clk 0:02:19]}  exf2+ {[%clk 0:01:32]} 14. Kg2 {[%clk 0:02:15]}  Be3 {[%clk 0:01:08]} 15. Qe2 {[%clk 0:02:13]}  Re8 {[%clk 0:01:08]} 16. Ne4 {[%clk 0:02:03]}  Nxe4 {[%clk 0:00:56]} 17. dxe4 {[%clk 0:01:40]}  Qg5 {[%clk 0:00:51]} 18. Bc1 {[%clk 0:01:35]}  Bxc1 {[%clk 0:00:48]} 19. Raxc1 {[%clk 0:01:36]}  d5 {[%clk 0:00:43]} 20. cxd5 {[%clk 0:01:28]}  cxd5 {[%clk 0:00:44]} 21. e5 {[%clk 0:01:28]}  Be6 {[%clk 0:00:34]} 22. Kxf2 {[%clk 0:01:24]}  Rac8 {[%clk 0:00:33]} 23. Qe3 {[%clk 0:01:24]}  Qxe3+ {[%clk 0:00:29]} 24. Kxe3 {[%clk 0:01:25]}  f6 {[%clk 0:00:29]} 25. Rfe1 {[%clk 0:01:20]}  Kf7 {[%clk 0:00:27]} 26. Bh5+ {[%clk 0:01:13]}  g6 {[%clk 0:00:27]} 27. Bf3 {[%clk 0:01:14]}  Ke7 {[%clk 0:00:24]} 28. Kd2 {[%clk 0:01:10]}  fxe5 {[%clk 0:00:19]} 29. Rxe5 {[%clk 0:01:06]}  Rxc1 {[%clk 0:00:17]} 30. Kxc1 {[%clk 0:01:07]}  Rc8+ {[%clk 0:00:17]} 31. Kd2 {[%clk 0:01:06]}  Kd6 {[%clk 0:00:18]} 32. Rxe6+ {[%clk 0:01:07]} 1-0


[Site "https://www.chess.com"]

[Event "Titled Tuesday Blitz April 19 Late 2022"]
[White "Sarana, Alexey"]
[Black "Indjic, Aleksandar"]
[WhiteFideId "24133795"]
[BlackFideId "911925"]
[WhiteElo "2666"]
[BlackElo "2616"]
[Result "1/2-1/2"]
[Round "09"]
[TimeControl "180+1"]
[Date "2022.04.19"]
[WhiteClock "0:00:08"]
[BlackClock "0:00:04"]

1. d4 {[%clk 0:03:00]}  d5 {[%clk 0:02:59]} 2. c4 {[%clk 0:03:01]}  e6 {[%clk 0:03:00]} 3. Nf3 {[%clk 0:03:01]}  a6 {[%clk 0:02:58]} 4. cxd5 {[%clk 0:03:00]}  exd5 {[%clk 0:02:59]} 5. Nc3 {[%clk 0:03:00]}  c6 {[%clk 0:02:57]} 6. Qc2 {[%clk 0:02:59]}  Nf6 {[%clk 0:02:56]} 7. Bg5 {[%clk 0:02:57]}  Be7 {[%clk 0:02:51]} 8. e3 {[%clk 0:02:57]}  Be6 {[%clk 0:02:48]} 9. Bd3 {[%clk 0:02:55]}  Nbd7 {[%clk 0:02:48]} 10. O-O {[%clk 0:02:55]}  O-O {[%clk 0:02:47]} 11. h3 {[%clk 0:02:56]}  Rc8 {[%clk 0:02:46]} 12. Rad1 {[%clk 0:02:53]}  Re8 {[%clk 0:02:44]} 13. Rfe1 {[%clk 0:02:50]}  Nf8 {[%clk 0:02:44]} 14. Ne5 {[%clk 0:02:48]}  N6d7 {[%clk 0:02:43]} 15. Bf4 {[%clk 0:02:41]}  Nxe5 {[%clk 0:02:37]} 16. Bxe5 {[%clk 0:02:42]}  Bd6 {[%clk 0:02:36]} 17. Bxd6 {[%clk 0:02:42]}  Qxd6 {[%clk 0:02:35]} 18. Na4 {[%clk 0:02:43]}  Qe7 {[%clk 0:02:32]} 19. Nc5 {[%clk 0:02:42]}  Rcd8 {[%clk 0:02:31]} 20. a4 {[%clk 0:02:41]}  Bc8 {[%clk 0:02:27]} 21. b4 {[%clk 0:02:41]}  Qf6 {[%clk 0:02:17]} 22. b5 {[%clk 0:02:18]}  cxb5 {[%clk 0:02:13]} 23. axb5 {[%clk 0:02:19]}  axb5 {[%clk 0:02:09]} 24. Bxb5 {[%clk 0:02:18]}  Re7 {[%clk 0:02:09]} 25. Bd3 {[%clk 0:02:12]}  Qg5 {[%clk 0:02:04]} 26. Kh2 {[%clk 0:02:10]}  Rc7 {[%clk 0:01:51]} 27. Qe2 {[%clk 0:02:09]}  Rc6 {[%clk 0:01:45]} 28. Qf3 {[%clk 0:02:08]}  b6 {[%clk 0:01:40]} 29. Na4 {[%clk 0:02:06]}  Qe7 {[%clk 0:01:27]} 30. Ra1 {[%clk 0:01:45]}  Ne6 {[%clk 0:01:11]} 31. Qg3 {[%clk 0:01:37]}  Ng5 {[%clk 0:01:02]} 32. Rec1 {[%clk 0:01:28]}  Rh6 {[%clk 0:00:58]} 33. Rc7 {[%clk 0:01:23]}  Qf6 {[%clk 0:00:49]} 34. Qf4 {[%clk 0:00:41]}  Qxf4+ {[%clk 0:00:22]} 35. exf4 {[%clk 0:00:42]}  Ne6 {[%clk 0:00:22]} 36. Ra7 {[%clk 0:00:42]}  Nxf4 {[%clk 0:00:21]} 37. Bb5 {[%clk 0:00:42]}  Rhd6 {[%clk 0:00:19]} 38. Nc3 {[%clk 0:00:31]}  Bf5 {[%clk 0:00:18]} 39. Rc1 {[%clk 0:00:13]}  h5 {[%clk 0:00:18]} 40. g3 {[%clk 0:00:10]}  Ne6 {[%clk 0:00:17]} 41. Ne2 {[%clk 0:00:11]}  Be4 {[%clk 0:00:17]} 42. Rc3 {[%clk 0:00:10]}  g5 {[%clk 0:00:16]} 43. f3 {[%clk 0:00:10]}  Bg6 {[%clk 0:00:16]} 44. Kg2 {[%clk 0:00:10]}  Ng7 {[%clk 0:00:15]} 45. g4 {[%clk 0:00:10]}  Ne6 {[%clk 0:00:15]} 46. Kf2 {[%clk 0:00:09]}  Kg7 {[%clk 0:00:14]} 47. Rc1 {[%clk 0:00:08]}  Rh8 {[%clk 0:00:13]} 48. Kg2 {[%clk 0:00:08]}  hxg4 {[%clk 0:00:14]} 49. hxg4 {[%clk 0:00:09]}  Kf6 {[%clk 0:00:14]} 50. Rc3 {[%clk 0:00:08]}  Rdd8 {[%clk 0:00:14]} 51. Rc6 {[%clk 0:00:07]}  Rc8 {[%clk 0:00:14]} 52. Rxb6 {[%clk 0:00:06]}  Rc2 {[%clk 0:00:14]} 53. Rd7 {[%clk 0:00:06]}  Rb2 {[%clk 0:00:11]} 54. Rxd5 {[%clk 0:00:04]}  Bd3 {[%clk 0:00:11]} 55. Bxd3 {[%clk 0:00:03]}  Rxb6 {[%clk 0:00:12]} 56. Rf5+ {[%clk 0:00:04]}  Ke7 {[%clk 0:00:11]} 57. Re5 {[%clk 0:00:04]}  Kd6 {[%clk 0:00:11]} 58. Kg3 {[%clk 0:00:04]}  Rb3 {[%clk 0:00:11]} 59. Bc4 {[%clk 0:00:02]}  Rb2 {[%clk 0:00:11]} 60. Bxe6 {[%clk 0:00:02]}  fxe6 {[%clk 0:00:12]} 61. Nc3 {[%clk 0:00:02]}  Rb4 {[%clk 0:00:04]} 62. Ne4+ {[%clk 0:00:03]}  Kd7 {[%clk 0:00:05]} 63. d5 {[%clk 0:00:03]}  exd5 {[%clk 0:00:04]} 64. Rxd5+ {[%clk 0:00:03]}  Ke6 {[%clk 0:00:05]} 65. Rxg5 {[%clk 0:00:04]}  Rd4 {[%clk 0:00:04]} 66. Ra5 {[%clk 0:00:04]}  Kf7 {[%clk 0:00:04]} 67. Ng5+ {[%clk 0:00:04]}  Kg6 {[%clk 0:00:04]} 68. Ne4 {[%clk 0:00:04]}  Rf8 {[%clk 0:00:03]} 69. Ra6+ {[%clk 0:00:05]}  Kg7 {[%clk 0:00:03]} 70. Rb6 {[%clk 0:00:05]}  Re8 {[%clk 0:00:02]} 71. Ng5 {[%clk 0:00:04]}  Kg8 {[%clk 0:00:02]} 72. Rg6+ {[%clk 0:00:04]}  Kh8 {[%clk 0:00:03]} 73. Rh6+ {[%clk 0:00:04]}  Kg8 {[%clk 0:00:03]} 74. Ra6 {[%clk 0:00:05]}  Rd2 {[%clk 0:00:02]} 75. Rg6+ {[%clk 0:00:05]}  Kh8 {[%clk 0:00:02]} 76. Rf6 {[%clk 0:00:06]}  Kg8 {[%clk 0:00:03]} 77. Rf5 {[%clk 0:00:06]}  Kg7 {[%clk 0:00:03]} 78. Ne4 {[%clk 0:00:06]}  Kg6 {[%clk 0:00:03]} 79. Rf6+ {[%clk 0:00:05]}  Kg7 {[%clk 0:00:03]} 80. Rf5 {[%clk 0:00:06]}  Rd3 {[%clk 0:00:04]} 81. Kf4 {[%clk 0:00:05]}  Rd7 {[%clk 0:00:04]} 82. Rg5+ {[%clk 0:00:05]}  Kh8 {[%clk 0:00:05]} 83. Rh5+ {[%clk 0:00:05]}  Kg7 {[%clk 0:00:04]} 84. Ra5 {[%clk 0:00:05]}  Rf7+ {[%clk 0:00:04]} 85. Kg3 {[%clk 0:00:05]}  Rfe7 {[%clk 0:00:04]} 86. Ng5 {[%clk 0:00:06]}  Re5 {[%clk 0:00:04]} 87. Ra7+ {[%clk 0:00:04]}  R8e7 {[%clk 0:00:04]} 88. Rxe7+ {[%clk 0:00:03]}  Rxe7 {[%clk 0:00:05]} 89. f4 {[%clk 0:00:03]}  Ra7 {[%clk 0:00:05]} 90. Kh4 {[%clk 0:00:02]}  Ra4 {[%clk 0:00:05]} 91. f5 {[%clk 0:00:03]}  Kf6 {[%clk 0:00:05]} 92. Nf3 {[%clk 0:00:02]}  Rf4 {[%clk 0:00:05]} 93. Kg3 {[%clk 0:00:02]}  Ra4 {[%clk 0:00:05]} 94. Nh2 {[%clk 0:00:01]}  Kg5 {[%clk 0:00:05]} 95. Nf3+ {[%clk 0:00:02]}  Kf6 {[%clk 0:00:05]} 96. Kh3 {[%clk 0:00:02]}  Rf4 {[%clk 0:00:05]} 97. Nh4 {[%clk 0:00:02]}  Kg5 {[%clk 0:00:05]} 98. Ng6 {[%clk 0:00:03]}  Rxg4 {[%clk 0:00:05]} 99. Ne5 {[%clk 0:00:03]}  Re4 {[%clk 0:00:05]} 100. Nf7+ {[%clk 0:00:02]}  Kf6 {[%clk 0:00:05]} 101. Nh6 {[%clk 0:00:03]}  Rf4 {[%clk 0:00:04]} 102. Kg3 {[%clk 0:00:03]}  Ra4 {[%clk 0:00:04]} 103. Ng4+ {[%clk 0:00:02]}  Kxf5 {[%clk 0:00:04]} 104. Ne3+ {[%clk 0:00:03]}  Ke4 {[%clk 0:00:05]} 105. Ng2 {[%clk 0:00:03]}  Ra7 {[%clk 0:00:04]} 106. Nh4 {[%clk 0:00:03]}  Rg7+ {[%clk 0:00:04]} 107. Kf2 {[%clk 0:00:04]}  Rf7+ {[%clk 0:00:04]} 108. Kg3 {[%clk 0:00:04]}  Rf6 {[%clk 0:00:04]} 109. Kg4 {[%clk 0:00:04]}  Rf4+ {[%clk 0:00:04]} 110. Kg5 {[%clk 0:00:05]}  Rf1 {[%clk 0:00:04]} 111. Ng6 {[%clk 0:00:06]}  Rg1+ {[%clk 0:00:04]} 112. Kf6 {[%clk 0:00:07]}  Kd5 {[%clk 0:00:04]} 113. Nf4+ {[%clk 0:00:07]}  Ke4 {[%clk 0:00:04]} 114. Ng6 {[%clk 0:00:08]}  Rxg6+ {[%clk 0:00:04]} 115. Kxg6 {[%clk 0:00:08]} 1/2-1/2


[Site "https://www.chess.com"]

[Event "Titled Tuesday Blitz April 19 Late 2022"]
[White "Sarkar, Justin"]
[Black "Blackman, Justin"]
[WhiteFideId "2010011"]
[BlackFideId "11100516"]
[WhiteElo "2038"]
[BlackElo "2112"]
[Result "1-0"]
[Round "09"]
[TimeControl "180+1"]
[Date "2022.04.19"]
[WhiteClock "0:00:04"]
[BlackClock "0:00:20"]

1. e4 {[%clk 0:02:54]}  e5 {[%clk 0:02:59]} 2. Nc3 {[%clk 0:02:52]}  Nc6 {[%clk 0:02:58]} 3. f4 {[%clk 0:02:51]}  exf4 {[%clk 0:02:52]} 4. d4 {[%clk 0:02:51]}  d6 {[%clk 0:02:48]} 5. Nf3 {[%clk 0:02:43]}  Be7 {[%clk 0:02:45]} 6. Bxf4 {[%clk 0:02:39]}  Nf6 {[%clk 0:02:45]} 7. d5 {[%clk 0:02:28]}  Nb8 {[%clk 0:02:43]} 8. Bd3 {[%clk 0:02:23]}  O-O {[%clk 0:02:36]} 9. O-O {[%clk 0:02:22]}  Nbd7 {[%clk 0:02:35]} 10. b4 {[%clk 0:01:59]}  Ng4 {[%clk 0:02:20]} 11. h3 {[%clk 0:01:44]}  Nge5 {[%clk 0:02:17]} 12. Nd4 {[%clk 0:01:43]}  Bg5 {[%clk 0:02:11]} 13. Qd2 {[%clk 0:01:36]}  Bxf4 {[%clk 0:02:08]} 14. Qxf4 {[%clk 0:01:36]}  Ng6 {[%clk 0:02:03]} 15. Qg3 {[%clk 0:01:28]}  Nde5 {[%clk 0:01:50]} 16. Nf5 {[%clk 0:01:27]}  Re8 {[%clk 0:01:25]} 17. a3 {[%clk 0:01:23]}  a5 {[%clk 0:01:20]} 18. Kh2 {[%clk 0:01:16]}  Bd7 {[%clk 0:01:11]} 19. Ne2 {[%clk 0:01:09]}  h6 {[%clk 0:00:48]} 20. Ned4 {[%clk 0:01:06]}  Qg5 {[%clk 0:00:43]} 21. h4 {[%clk 0:00:49]}  Qxg3+ {[%clk 0:00:41]} 22. Kxg3 {[%clk 0:00:50]}  h5 {[%clk 0:00:39]} 23. Be2 {[%clk 0:00:40]}  Ne7 {[%clk 0:00:26]} 24. Nxe7+ {[%clk 0:00:29]}  Rxe7 {[%clk 0:00:27]} 25. Bxh5 {[%clk 0:00:28]}  Nc4 {[%clk 0:00:26]} 26. Bf3 {[%clk 0:00:21]}  Nd2 {[%clk 0:00:23]} 27. Rfe1 {[%clk 0:00:18]}  axb4 {[%clk 0:00:23]} 28. axb4 {[%clk 0:00:18]}  Rxa1 {[%clk 0:00:23]} 29. Rxa1 {[%clk 0:00:18]}  Nxe4+ {[%clk 0:00:23]} 30. Kh2 {[%clk 0:00:09]}  Nd2 {[%clk 0:00:22]} 31. Ra7 {[%clk 0:00:07]}  Nxf3+ {[%clk 0:00:20]} 32. gxf3 {[%clk 0:00:07]}  Bc8 {[%clk 0:00:13]} 33. Ra8 {[%clk 0:00:07]}  Re8 {[%clk 0:00:14]} 34. Nb5 {[%clk 0:00:06]}  Bd7 {[%clk 0:00:14]} 35. Rxe8+ {[%clk 0:00:05]}  Bxe8 {[%clk 0:00:14]} 36. Nxc7 {[%clk 0:00:05]}  Bd7 {[%clk 0:00:15]} 37. c4 {[%clk 0:00:05]}  Kf8 {[%clk 0:00:16]} 38. c5 {[%clk 0:00:03]}  Ke7 {[%clk 0:00:16]} 39. Kg3 {[%clk 0:00:03]}  Kd8 {[%clk 0:00:15]} 40. cxd6 {[%clk 0:00:03]}  Bb5 {[%clk 0:00:15]} 41. Kf4 {[%clk 0:00:03]}  Kd7 {[%clk 0:00:16]} 42. Ke5 {[%clk 0:00:02]}  f6+ {[%clk 0:00:16]} 43. Kd4 {[%clk 0:00:03]}  Be2 {[%clk 0:00:14]} 44. f4 {[%clk 0:00:02]}  Kxd6 {[%clk 0:00:13]} 45. Ne8+ {[%clk 0:00:03]}  Ke7 {[%clk 0:00:14]} 46. Nxg7 {[%clk 0:00:03]}  Bg4 {[%clk 0:00:14]} 47. h5 {[%clk 0:00:03]}  Kf7 {[%clk 0:00:14]} 48. h6 {[%clk 0:00:03]}  Kg6 {[%clk 0:00:15]} 49. d6 {[%clk 0:00:03]}  Kxh6 {[%clk 0:00:14]} 50. f5 {[%clk 0:00:03]}  Kxg7 {[%clk 0:00:14]} 51. d7 {[%clk 0:00:03]}  Bxf5 {[%clk 0:00:15]} 52. d8=Q {[%clk 0:00:03]}  Kg6 {[%clk 0:00:16]} 53. Qc7 {[%clk 0:00:04]}  Be4 {[%clk 0:00:15]} 54. Qd6 {[%clk 0:00:04]}  Bc6 {[%clk 0:00:15]} 55. Kc5 {[%clk 0:00:04]}  Kg5 {[%clk 0:00:15]} 56. b5 {[%clk 0:00:04]}  Bxb5 {[%clk 0:00:14]} 57. Kxb5 {[%clk 0:00:04]}  f5 {[%clk 0:00:15]} 58. Kb6 {[%clk 0:00:04]}  f4 {[%clk 0:00:16]} 59. Kxb7 {[%clk 0:00:04]}  Kg4 {[%clk 0:00:17]} 60. Qd4 {[%clk 0:00:04]}  Kg3 {[%clk 0:00:17]} 61. Qg1+ {[%clk 0:00:04]}  Kf3 {[%clk 0:00:18]} 62. Kc6 {[%clk 0:00:05]}  Ke2 {[%clk 0:00:18]} 63. Kd5 {[%clk 0:00:04]}  f3 {[%clk 0:00:19]} 64. Qg4 {[%clk 0:00:04]}  Ke3 {[%clk 0:00:18]} 65. Qe4+ {[%clk 0:00:04]}  Kf2 {[%clk 0:00:18]} 66. Ke5 {[%clk 0:00:04]}  Kg3 {[%clk 0:00:18]} 67. Qf4+ {[%clk 0:00:04]}  Kg2 {[%clk 0:00:19]} 68. Qg4+ {[%clk 0:00:04]}  Kf2 {[%clk 0:00:19]} 69. Kf4 {[%clk 0:00:04]}  Ke1 {[%clk 0:00:20]} 70. Qxf3 {[%clk 0:00:04]}  Kd2 {[%clk 0:00:20]} 71. Ke4 {[%clk 0:00:04]} 1-0


[Site "https://www.chess.com"]